bitfinex/quotes_ETHUSD_20251218
["timestamp","ask_amount","ask_price","bid_price","bid_amount"]
[1766073932228,0.545,2961.9,2960.6,0.25081]
[1766073932446,0.03296226,2961.8,2960.5,0.001]
[1766073932754,0.545,2961.9,2960.5,0.001]
[1766073932962,0.545,2961.8,2960.5,0.001]
[1766073933755,0.46438023,2961.6,2960.5,0.001]
[1766073933926,0.03296226,2961.5,2960.5,0.001]
[1766073934128,9.18169706,2963.1,2960.6,0.405504]
[1766073934323,9.18169706,2963.1,2960.5,0.37069]
[1766073934324,0.545,2962.0,2960.5,0.37069]
[1766073934527,9.08754777,2962.6,2960.3,3.379036]
[1766073934528,0.405504,2961.8,2960.3,0.001]
[1766073935425,0.545,2961.7,2960.4,3.6949]
[1766073935930,0.46438023,2961.5,2960.4,3.6949]
[1766073936154,3.92144195,2961.7,2960.4,3.6949]
[1766073936155,0.545,2961.4,2960.5,0.001]
[1766073937244,0.5442,2961.4,2960.5,0.001]
[1766073937640,0.545,2961.3,2960.5,3.6959]
[1766073937968,0.545,2961.3,2960.5,0.001]
[1766073938568,0.46438023,2961.2,2960.5,0.001]
[1766073938870,3.92190128,2961.3,2960.5,0.37069]
[1766073938871,0.545,2961.3,2960.5,0.37069]
[1766073939459,0.545,2961.3,2960.5,1.55849]
[1766073939667,1.04234249,2961.3,2960.5,0.37069]
[1766073940050,0.545,2961.3,2960.5,0.37069]
[1766073940451,0.46438023,2961.2,2960.5,0.37069]
[1766073940648,0.545,2961.3,2960.5,0.37069]
[1766073941068,1.00938023,2961.3,2960.5,0.37069]
[1766073941784,4.38632023,2961.3,2960.5,0.37069]
[1766073942082,5.16263119,2961.3,2960.5,0.001]
[1766073942281,1.32131096,2961.3,2960.5,0.001]
[1766073942494,0.545,2961.3,2960.5,0.001]
[1766073942697,0.545,2961.3,2960.5,3.4928]
[1766073943794,3.84101229,2961.6,2960.5,3.4928]
[1766073943951,0.545,2961.2,2960.5,3.4928]
[1766073944986,0.01,3359.0,2960.8,2.3413]
[1766073944987,6.47,2962.2,2960.8,2.3413]
[1766073945152,3.37472007,2963.3,2960.9,0.2746804]
[1766073945153,0.545,2962.1,2960.9,0.2746804]
[1766073945550,0.545,2962.1,2960.6,3.4918]
[1766073945861,0.03296226,2962.0,2960.7,3.4918]
[1766073946057,0.46438023,2962.5,2960.6,0.405504]
[1766073946366,0.46438023,2962.3,2961.1,2.3413]
[1766073946567,0.46438023,2962.3,2961.2,3.4918]
[1766073946748,6.47,2963.2,2961.6,2.3413]
[1766073946955,15.15579199,2963.3,2961.3,0.34918]
[1766073947152,15.15579199,2963.3,2961.7,2.3413]
[1766073947153,3.91973002,2963.2,2961.7,2.3413]
[1766073947397,10.66934978,2963.2,2961.7,3.4918]
[1766073947579,0.46438023,2963.1,2961.7,3.4918]
[1766073948080,0.46438023,2962.8,2961.0,2.3413]
[1766073948280,0.46438023,2962.5,2961.2,0.405504]
[1766073948472,3.37541348,2962.6,2961.5,3.4918]
[1766073948473,0.545,2962.4,2961.5,3.4918]
[1766073948674,0.545,2962.4,2961.3,2.3413]
[1766073948870,0.545,2962.4,2961.1,0.29804493]
[1766073949047,0.49734249,2962.3,2960.7,6.18319623]
[1766073949247,0.46438023,2961.9,2960.5,0.001]
[1766073949483,0.46438023,2962.4,2960.6,3.37760927]
[1766073949664,0.57796226,2962.3,2960.8,3.4918]
[1766073949859,0.46438023,2962.6,2960.8,3.37735475]
[1766073950063,0.46438023,2962.4,2960.9,3.82953548]
[1766073950268,2.5641228,2962.5,2960.9,3.82953548]
[1766073950269,0.46438023,2962.2,2960.9,3.82953548]
[1766073951052,0.46438023,2962.3,2961.0,0.405504]
[1766073951253,0.545,2962.1,2961.2,3.4918]
[1766073951587,0.545,2962.1,2961.3,3.4918]
[1766073951784,0.545,2962.1,2961.4,3.4918]
[1766073952151,0.545,2962.1,2961.3,0.34918]
[1766073952482,0.545,2962.0,2961.1,2.3413]
[1766073952686,0.57796226,2962.0,2961.0,3.4918]
[1766073952853,0.545,2962.0,2961.0,3.4918]
[1766073953055,0.545,2962.0,2961.0,3.37720804]
[1766073953359,0.545,2962.0,2961.1,0.37149435]
[1766073953565,0.545,2961.9,2961.2,3.4918]
[1766073953972,0.545,2961.9,2961.3,3.37687125]
[1766073954177,0.545,2961.9,2961.4,3.4918]
[1766073954383,8.68579199,2963.4,2961.5,2.3413]
[1766073954565,7.29468782,2963.1,2961.8,1.1505]
[1766073954771,0.46438023,2963.0,2961.8,1.1505]
[1766073954963,0.46438023,2962.8,2960.9,3.99145329]
[1766073955293,0.405504,2962.7,2960.9,6.96323162]
[1766073955496,0.545,2962.6,2960.9,6.96323162]
[1766073955984,0.545,2962.6,2960.9,3.58594929]
[1766073956182,0.545,2962.6,2961.0,3.37718275]
[1766073956367,0.545,2962.6,2961.2,0.37486771]
[1766073956564,0.46438023,2962.4,2961.2,0.37486771]
[1766073957461,0.545,2962.3,2961.2,3.37700846]
[1766073957657,0.46438023,2962.4,2961.4,3.4918]
[1766073957858,0.545,2962.2,2961.4,3.4918]
[1766073958057,0.545,2962.2,2961.2,6.75401778]
[1766073958394,0.545,2962.2,2961.5,3.4918]
[1766073958566,0.545,2962.2,2961.5,3.8815304]
[1766073958965,1.00938023,2962.2,2961.5,0.3897304]
[1766073959274,0.545,2962.2,2961.1,0.37149435]
[1766073959485,0.545,2962.2,2961.1,3.74860146]
[1766073959788,0.46438023,2962.1,2961.1,0.37149435]
[1766073959972,0.46438023,2962.1,2960.9,3.4918]
[1766073960288,0.46438023,2962.1,2961.0,3.4918]
[1766073960494,0.46438023,2962.1,2961.1,1.1505]
[1766073960668,0.545,2962.2,2961.3,3.3252]
[1766073960875,0.46438023,2962.1,2961.0,3.3252]
[1766073961070,0.46438023,2962.3,2961.2,2.2737]
[1766073961275,0.545,2962.2,2961.6,3.3252]
[1766073961483,0.545,2962.2,2961.2,2.2737]
[1766073961886,0.5442,2962.2,2961.2,2.2737]
[1766073962076,0.5442,2962.2,2960.9,6.70247075]
[1766073962422,0.5442,2962.2,2961.1,2.2737]
[1766073962700,0.002,2962.8,2962.0,1.0515]
[1766073962864,0.002,2962.8,2962.4,2.2737]
[1766073963068,0.002,2963.2,2961.5,10.59228934]
[1766073963069,0.545,2963.0,2962.6,3.3252]
[1766073964098,0.002,2963.2,2962.9,3.3252]
[1766073964396,0.545,2963.5,2963.0,0.33252]
[1766073964895,0.545,2963.5,2962.6,3.3252]
[1766073965094,1.00938023,2963.5,2962.4,6.7008411]
[1766073965284,0.545,2963.5,2962.4,6.7008411]
[1766073965603,0.545,2963.5,2962.5,3.3252]
[1766073965770,0.46438023,2963.4,2962.5,3.3252]
[1766073966103,0.46438023,2963.4,2962.0,1.0515]
[1766073966288,0.03296226,2963.3,2962.0,1.0515]
[1766073966488,0.03296226,2963.3,2962.1,1.0515]
[1766073966804,0.545,2963.3,2962.3,3.3252]
[1766073967495,0.545,2963.3,2962.4,1.0515]
[1766073967816,0.545,2963.3,2962.5,0.33252]
[1766073968015,0.545,2963.3,2962.8,2.2737]
[1766073968312,0.545,2963.3,2962.8,3.3252]
[1766073968465,0.002,2963.8,2963.2,2.2737]
[1766073968671,0.547,2963.8,2963.2,3.3252]
[1766073968866,0.547,2963.8,2963.2,3.65772]
[1766073969111,0.547,2963.8,2963.3,1.0515]
[1766073969307,0.002,2963.8,2963.2,0.33252]
[1766073969513,0.002,2963.8,2962.6,1.51588023]
[1766073969681,0.002,2963.8,2962.7,3.3252]
[1766073969873,0.002,2963.8,2962.8,3.3252]
[1766073970074,0.545,2963.7,2962.9,1.0515]
[1766073970296,0.545,2963.7,2962.9,3.3252]
[1766073970507,0.03296226,2963.6,2962.6,1.0515]
[1766073970710,0.545,2963.7,2962.9,3.3252]
[1766073970871,0.545,2963.7,2962.6,3.730704]
[1766073971206,0.545,2963.7,2963.0,1.0515]
[1766073971512,0.002,2963.8,2963.4,3.3252]
[1766073971711,0.002,2963.8,2963.5,3.65772]
[1766073971876,0.002,2964.0,2963.5,3.65772]
[1766073972206,0.002,2964.0,2963.6,1.0515]
[1766073972410,1.00938023,2964.5,2963.7,3.3252]
[1766073972773,0.545,2964.5,2963.7,3.3252]
[1766073973212,3.91825553,2964.5,2963.7,3.3252]
[1766073973508,0.545,2964.5,2963.7,3.3252]
[1766073973940,1.00938023,2964.5,2963.7,3.3252]
[1766073974297,0.002,2963.8,2963.7,3.3252]
[1766073974499,0.545,2964.5,2964.0,1.12]
[1766073974730,0.545,2964.5,2963.7,0.33252]
[1766073974731,0.002,2964.8,2964.3,2.3294]
[1766073974918,0.002,2964.8,2963.9,2.3294]
[1766073975110,0.002,2964.8,2963.5,0.545]
[1766073975344,0.545,2964.7,2963.5,6.82372388]
[1766073975550,0.002,2964.8,2963.8,3.4494]
[1766073975850,0.002,2964.8,2963.5,1.08787639]
[1766073976027,0.002,2964.8,2963.7,2.3294]
[1766073976232,0.002,2965.0,2964.3,6.74690978]
[1766073976428,0.002,2965.2,2964.7,1.12]
[1766073976915,0.002,2965.2,2964.7,3.4494]
[1766073977311,0.002,2965.2,2963.2,0.09414929]
[1766073977506,0.002,2965.2,2964.2,3.4494]
[1766073978035,0.544,2965.1,2963.9,0.544]
[1766073978199,0.002,2965.2,2964.0,3.4494]
[1766073978406,0.002,2965.2,2963.7,3.37413802]
[1766073978407,0.002,2965.2,2964.5,2.3294]
[1766073978602,0.546,2965.2,2964.6,2.3294]
[1766073979252,0.546,2965.2,2964.4,1.12]
[1766073979407,0.546,2965.2,2964.5,0.0337325]
[1766073979614,1.01038023,2965.2,2964.2,2.3294]
[1766073979809,0.43827244,2965.1,2964.2,2.3294]
[1766073980139,0.546,2965.2,2964.0,0.405504]
[1766073980140,0.002,2965.2,2964.0,0.405504]
[1766073980439,0.002,2965.2,2964.7,2.3294]
[1766073980950,0.002,2965.2,2964.8,2.3294]
[1766073981264,0.002,2967.2,2965.0,2.3294]
[1766073981417,4.9172933,2966.3,2965.2,3.4494]
[1766073981620,1.546,2966.3,2965.2,3.4494]
[1766073981815,1.546,2966.3,2965.0,0.28734]
[1766073982015,1.546,2966.3,2965.3,0.405504]
[1766073982016,1.002,2966.3,2965.3,0.405504]
[1766073982260,0.002,2967.1,2966.4,1.12]
[1766073982547,0.002,2967.1,2965.7,1.12]
[1766073982548,6.74261906,2967.1,2965.7,1.12]
[1766073982751,0.46438023,2967.0,2965.7,3.4494]
[1766073983049,0.38366745,2966.9,2966.0,1.12]
[1766073983255,0.002,2967.1,2966.4,1.12]
[1766073983418,0.002,2967.1,2966.5,3.4494]
[1766073983620,0.002,2967.1,2966.7,1.12]
[1766073983953,0.544,2968.1,2967.2,3.4494]
[1766073984114,1.00838023,2968.1,2966.3,3.4494]
[1766073984318,0.77464707,2968.0,2966.4,0.405504]
[1766073984548,0.77464707,2968.0,2966.4,0.43921489]
[1766073984987,0.46438023,2967.9,2966.6,3.37086226]
[1766073985155,0.46438023,2967.9,2966.8,3.4494]
[1766073985357,0.46438023,2967.9,2966.5,0.46438023]
[1766073985665,0.7977606,2967.8,2966.5,3.91378023]
[1766073985820,0.7977606,2967.8,2966.5,7.28475134]
[1766073986141,0.7977606,2967.8,2966.4,3.83546091]
[1766073986344,0.03296226,2967.7,2966.4,3.4494]
[1766073986558,0.03216226,2967.7,2966.0,0.46438023]
[1766073986761,0.95157149,2967.6,2966.0,1.25674716]
[1766073987060,0.95157149,2967.6,2965.4,2.3294]
[1766073987061,9.55567622,2967.3,2965.4,2.3294]
[1766073987355,0.86988423,2967.3,2965.5,3.37204737]
[1766073987531,0.544,2967.2,2965.7,1.12]
[1766073987853,0.544,2967.2,2965.8,3.4494]
[1766073988072,0.544,2967.2,2965.2,0.63814929]
[1766073988275,0.03216226,2967.1,2965.6,2.3294]
[1766073988426,0.86988423,2967.3,2965.7,3.4494]
[1766073988756,0.86988423,2967.3,2966.2,1.12]
[1766073988757,0.544,2967.2,2966.2,1.12]
[1766073988962,0.46438023,2967.0,2965.8,2.3294]
[1766073989158,0.46438023,2967.1,2966.0,1.12]
[1766073989340,0.46438023,2967.1,2966.1,1.12]
[1766073989662,0.43785762,2967.0,2965.6,0.57014385]
[1766073989847,0.43785762,2967.0,2965.6,1.12]
[1766073990376,0.43785762,2967.0,2965.3,2.3294]
[1766073990545,0.544,2966.9,2965.7,1.12]
[1766073990730,0.03216226,2966.8,2965.7,1.12]
[1766073990931,0.46438023,2966.7,2965.7,3.4494]
[1766073991154,0.38672496,2966.6,2965.4,3.91378023]
[1766073991365,0.38672496,2966.6,2965.5,3.4494]
[1766073991542,0.38672496,2966.6,2965.6,3.4494]
[1766073991861,0.544,2966.5,2965.8,1.12]
[1766073992228,0.46438023,2966.7,2965.7,2.3294]
[1766073992516,0.92750275,2966.6,2965.8,3.4494]
[1766073992668,0.544,2966.6,2965.8,3.48311771]
[1766073992853,3.37015035,2967.3,2965.7,7.28775447]
[1766073993031,0.002,2968.3,2965.6,2.3294]
[1766073993032,0.544,2967.1,2965.6,2.3294]
[1766073993233,0.03216226,2967.0,2965.5,3.91378023]
[1766073993568,0.03216226,2967.0,2965.7,1.664]
[1766073993769,0.03216226,2967.0,2965.8,3.4494]
[1766073994072,0.544,2967.1,2965.8,3.4494]
[1766073994436,0.544,2967.1,2965.7,3.91587369]
[1766073994633,0.544,2967.1,2965.8,3.4494]
[1766073995045,0.544,2967.1,2965.8,0.73653561]
[1766073995273,0.46438023,2967.0,2965.9,2.3294]
[1766073995457,0.46438023,2967.0,2966.1,2.3294]
[1766073995663,0.46438023,2967.0,2966.1,3.4494]
[1766073995858,0.46438023,2967.0,2966.2,0.03371316]
[1766073996040,0.46438023,2967.0,2965.9,3.4494]
[1766073996239,0.43786986,2966.9,2966.0,3.4494]
[1766073996441,0.43786986,2966.9,2966.2,1.12]
[1766073996676,0.544,2967.1,2966.2,3.4494]
[1766073996876,0.544,2967.1,2965.8,6.74350407]
[1766073996877,0.544,2967.1,2966.1,3.4494]
[1766073997082,1.00838023,2967.1,2966.1,3.4494]
[1766073997374,1.00838023,2967.1,2966.0,3.9934]
[1766073997580,1.00838023,2967.1,2966.1,3.4494]
[1766073997777,0.002,2966.9,2966.1,2.3294]
[1766073997977,0.002,2966.9,2965.8,3.9934]
[1766073998275,0.002,2966.9,2966.0,1.12]
[1766073998484,0.002,2966.9,2966.2,3.4494]
[1766073998844,0.002,2967.2,2966.5,1.12]
[1766073999084,0.002,2967.2,2966.1,1.12]
[1766073999381,0.002,2967.2,2966.2,3.4494]
[1766073999583,0.002,2967.2,2966.6,2.3294]
[1766073999783,0.002,2968.1,2966.9,2.3294]
[1766073999784,0.544,2967.9,2966.9,2.3294]
[1766074000029,0.544,2967.9,2967.0,1.12]
[1766074000415,0.544,2967.9,2967.2,3.4494]
[1766074000547,0.544,2967.9,2966.9,1.12]
[1766074000909,0.544,2967.9,2967.3,2.3294]
[1766074001047,0.544,2967.9,2967.4,3.4494]
[1766074001878,0.544,2967.9,2967.0,4.3788904]
[1766074002089,0.03216226,2967.8,2966.6,3.4494]
[1766074002245,0.544,2967.9,2966.6,3.4494]
[1766074002443,0.46438023,2967.8,2966.6,3.4494]
[1766074002638,0.4377766,2967.7,2966.7,6.77548891]
[1766074002872,0.46438023,2967.8,2966.7,3.4048]
[1766074003274,1.00838023,2967.9,2966.7,3.4048]
[1766074003454,0.46438023,2967.7,2966.7,3.4048]
[1766074004067,0.002,2968.1,2966.8,0.405504]
[1766074004267,0.46438023,2967.9,2966.7,3.4048]
[1766074004471,0.46438023,2967.9,2966.8,3.4048]
[1766074005285,0.002,2967.7,2966.8,3.4048]
[1766074005471,0.002,2967.7,2966.9,1.1391]
[1766074005786,0.002,2967.7,2966.9,2.2657]
[1766074006086,0.002,2967.7,2967.1,3.4048]
[1766074006288,0.002,2967.7,2967.2,1.1391]
[1766074006661,0.002,2967.7,2967.3,2.2657]
[1766074006988,0.002,2967.7,2966.9,0.56363157]
[1766074007161,0.002,2967.7,2966.8,2.8097]
[1766074007362,0.002,2967.7,2966.9,3.4048]
[1766074008480,0.46638023,2967.7,2964.8,0.051]
[1766074008664,0.57616226,2967.6,2966.1,3.37136096]
[1766074008863,0.544,2967.6,2966.2,3.4048]
[1766074009187,0.46438023,2967.4,2965.8,1.1391]
[1766074009371,0.03216226,2967.3,2965.8,4.51081119]
[1766074009567,0.46438023,2967.4,2966.0,3.4058]
[1766074009767,0.544,2967.3,2966.0,3.4058]
[1766074010176,0.46438023,2967.4,2966.0,0.001]
[1766074010177,0.544,2967.2,2966.0,0.001]
[1766074010372,0.544,2967.2,2966.1,3.4048]
[1766074011167,3.9142872,2967.2,2966.1,3.4048]
[1766074011385,1.19201637,2967.1,2966.0,0.001]
[1766074011572,0.03216226,2967.0,2966.0,0.001]
[1766074012307,1.19201637,2967.1,2966.0,0.001]
[1766074012308,1.22417863,2967.1,2966.0,0.001]
[1766074012676,0.405504,2967.0,2965.1,2.2657]
[1766074012995,0.405504,2966.8,2965.1,3.4048]
[1766074013172,6.74172452,2966.6,2965.1,3.4048]
[1766074013372,0.49654249,2966.5,2965.1,3.4048]
[1766074013575,0.405504,2966.4,2964.8,0.001]
[1766074013773,0.405504,2966.2,2964.8,0.001]
[1766074013974,0.544,2966.1,2964.8,3.4058]
[1766074014180,0.544,2966.1,2964.8,3.74638]
[1766074014889,0.544,2966.1,2964.9,1.1391]
[1766074015086,0.544,2966.1,2964.9,3.4048]
[1766074015333,0.46438023,2965.9,2964.8,0.001]
[1766074015481,0.405504,2965.7,2964.0,1.1391]
[1766074015677,0.405504,2965.5,2963.8,0.001]
[1766074016018,0.57616226,2965.6,2963.8,0.001]
[1766074016179,0.405504,2965.5,2963.8,3.37496217]
[1766074016381,0.405504,2965.5,2963.8,6.77976217]
[1766074016888,0.03216226,2965.4,2963.8,3.4058]
[1766074017095,0.405504,2965.3,2963.8,0.38811802]
[1766074017289,0.46438023,2965.0,2963.8,1.1401]
[1766074017494,0.544,2964.9,2963.8,3.4058]
[1766074018604,0.544,2964.9,2964.1,3.4048]
[1766074019002,0.544,2964.9,2963.9,3.4048]
[1766074019202,0.544,2964.9,2963.8,0.406504]
[1766074019403,0.544,2965.0,2964.2,2.2657]
[1766074019726,0.544,2965.0,2964.3,1.36567]
[1766074020029,0.46438023,2966.1,2964.5,1.1391]
[1766074020182,0.544,2966.0,2964.3,0.22657]
[1766074020379,0.03216226,2965.9,2964.3,0.22657]
[1766074020708,0.544,2966.0,2964.4,3.5048]
[1766074020905,0.544,2966.0,2964.5,0.373137]
[1766074021112,3.37131683,2966.2,2964.7,3.5048]
[1766074021421,0.544,2966.0,2964.7,3.37302256]
[1766074021587,0.544,2966.0,2964.7,6.74604512]
[1766074021919,0.544,2966.0,2965.0,3.5048]
[1766074022120,0.544,2966.0,2965.1,0.35048]
[1766074022488,0.544,2966.0,2965.2,1.1664]
[1766074022689,0.544,2966.0,2965.2,3.5048]
[1766074022927,1.00838023,2966.0,2965.2,3.5048]
[1766074023116,1.00838023,2966.0,2964.7,6.74604512]
[1766074023117,0.544,2966.0,2964.7,6.74604512]
[1766074023287,7.28722614,2966.0,2964.6,3.5048]
[1766074023634,0.46438023,2965.9,2964.7,0.3877937]
[1766074023813,0.03216226,2965.8,2964.5,0.373137]
[1766074024031,0.405504,2965.7,2963.7,0.001]
[1766074024202,0.405504,2965.5,2963.7,1.1674]
[1766074024391,0.544,2965.4,2963.7,1.1674]
[1766074024731,0.544,2965.4,2963.8,3.5058]
[1766074024928,0.544,2965.4,2964.0,1.1664]
[1766074025131,0.03216226,2965.3,2964.0,1.1664]
[1766074025302,0.46438023,2965.1,2964.1,0.35048]
[1766074025626,0.46438023,2965.1,2964.0,1.1664]
[1766074025828,0.46438023,2965.1,2963.9,3.37392433]
[1766074026054,0.09414929,2966.5,2964.2,2.3384]
[1766074026349,0.544,2965.8,2964.7,1.1664]
[1766074026719,0.544,2965.8,2965.1,0.001]
[1766074027644,0.46438023,2965.6,2965.1,0.001]
[1766074027800,0.46438023,2965.7,2965.1,0.001]
[1766074028005,0.90240067,2965.7,2965.1,0.001]
[1766074028306,0.90240067,2965.7,2963.7,10.001]
[1766074028503,0.03216226,2965.6,2964.0,0.001]
[1766074028943,0.03216226,2965.6,2964.0,3.37480175]
[1766074029244,0.03216226,2965.6,2964.1,0.6177582]
[1766074029443,0.03216226,2965.6,2964.0,0.001]
[1766074029645,0.46438023,2965.4,2964.0,0.001]
[1766074029819,0.544,2965.3,2964.0,0.001]
[1766074030211,0.544,2965.3,2964.1,3.5048]
[1766074030411,0.544,2965.3,2964.0,0.001]
[1766074030412,0.544,2965.2,2964.2,1.1664]
[1766074030742,0.46438023,2965.4,2964.1,3.910304]
[1766074030743,0.544,2965.4,2964.1,3.910304]
[1766074030944,0.544,2965.4,2964.2,0.94454533]
[1766074031418,0.544,2965.4,2964.2,0.40054533]
[1766074031618,0.46438023,2965.2,2964.2,3.90534533]
[1766074031919,4.38063051,2965.4,2964.3,3.5048]
[1766074032120,0.43806305,2965.3,2964.3,4.23269366]
[1766074032514,0.03216226,2965.2,2964.3,0.72789366]
[1766074032839,0.03216226,2965.2,2964.0,1.1145]
[1766074033227,0.43806305,2965.3,2964.1,0.03373705]
[1766074033429,0.43806305,2965.3,2964.3,3.3308]
[1766074033632,0.46438023,2965.2,2964.3,3.3308]
[1766074033807,0.46438023,2965.2,2964.2,3.3308]
[1766074034010,4.38063758,2965.4,2964.4,3.3308]
[1766074034616,0.03216226,2965.3,2964.0,0.001]
[1766074034939,7.75289493,2965.4,2964.0,0.001]
[1766074035243,11.12515228,2965.4,2964.0,0.001]
[1766074035443,0.03216226,2965.3,2964.0,0.001]
[1766074035606,1.11573145,2965.2,2964.0,0.001]
[1766074035811,0.46438023,2965.0,2964.0,0.001]
[1766074036043,0.5432,2964.9,2964.2,1.1135]
[1766074036214,0.5432,2964.9,2964.2,3.3308]
[1766074036937,0.5432,2964.9,2964.3,1.1135]
[1766074037107,0.5432,2964.9,2964.4,1.1135]
[1766074037309,0.5432,2964.9,2964.0,3.3318]
[1766074037508,0.5432,2964.9,2964.1,3.66398]
[1766074038520,0.5432,2964.9,2964.1,5.92415869]
[1766074038715,0.5432,2964.9,2964.2,3.3308]
[1766074038916,0.46438023,2964.8,2964.0,0.001]
[1766074039115,0.46438023,2964.8,2963.8,0.001]
[1766074039339,1.11260347,2964.7,2963.8,0.001]
[1766074039653,1.11260347,2964.7,2963.6,0.001]
[1766074039654,0.03216226,2964.6,2963.6,0.001]
[1766074039866,0.03216226,2964.6,2963.0,6.70572011]
[1766074039867,0.46438023,2964.4,2963.0,6.70572011]
[1766074040146,0.46438023,2964.4,2963.1,3.3308]
[1766074040450,0.03216226,2964.3,2963.1,3.3308]
[1766074040648,0.544,2964.2,2963.1,3.66398]
[1766074041139,0.544,2964.2,2963.1,0.33318]
[1766074041340,0.544,2964.2,2963.1,3.66398]
[1766074041645,0.544,2964.2,2962.9,0.001]
[1766074041847,0.46438023,2964.0,2962.9,0.001]
[1766074042028,0.03216226,2963.9,2962.9,0.001]
[1766074044049,0.46438023,2963.7,2963.0,0.001]
[1766074044242,0.544,2963.6,2963.0,0.001]
[1766074045232,0.544,2963.6,2963.0,0.33438]
[1766074045528,0.544,2963.6,2963.1,3.3308]
[1766074046051,0.544,2964.0,2963.1,3.3308]
[1766074046258,0.544,2964.2,2963.2,1.1135]
[1766074046452,0.544,2964.2,2963.0,0.001]
[1766074046620,0.544,2964.2,2963.2,1.1135]
[1766074046826,0.544,2964.2,2963.3,2.2173]
[1766074047026,0.544,2964.2,2963.4,0.22173]
[1766074047623,3.37188522,2965.7,2963.6,3.3308]
[1766074047828,6.74422524,2965.5,2964.0,1.1135]
[1766074048041,0.46438023,2965.4,2964.1,3.3308]
[1766074048244,6.74422524,2965.5,2964.0,3.3308]
[1766074048538,0.72882252,2965.4,2964.2,3.3308]
[1766074048740,1.19320275,2965.4,2964.2,3.3308]
[1766074048946,0.72882252,2965.4,2964.3,1.14723477]
[1766074049147,0.72882252,2965.4,2964.4,1.1135]
[1766074049656,0.72882252,2965.4,2964.3,2.2173]
[1766074049863,3.91600501,2965.6,2964.5,3.3308]
[1766074050367,0.46438023,2965.5,2964.5,3.3308]
[1766074050538,0.544,2965.6,2964.5,6.70404295]
[1766074050742,3.9160504,2965.6,2964.4,3.3308]
[1766074050943,0.46438023,2965.5,2964.6,3.3308]
[1766074051556,3.37386365,2965.8,2964.6,3.3308]
[1766074051557,0.002,2965.8,2964.6,3.3308]
[1766074051762,0.002,2965.8,2964.5,7.1339771]
[1766074051763,0.002,2965.4,2964.7,1.1135]
[1766074051970,0.002,2965.8,2964.5,7.1339771]
[1766074051971,0.002,2965.8,2965.0,6.74533498]
[1766074052272,0.002,2965.8,2965.3,3.3308]
[1766074052772,0.002,2966.6,2965.5,1.1135]
[1766074052974,0.544,2966.5,2965.7,3.3308]
[1766074053664,0.002,2966.6,2965.7,2.2173]
[1766074053835,0.002,2966.6,2965.8,3.3308]
[1766074054251,0.002,2966.6,2965.8,4.00107847]
[1766074054771,0.002,2966.6,2965.8,0.67027847]
[1766074054948,0.002,2966.6,2965.9,2.2173]
[1766074055271,0.002,2966.6,2966.1,3.3308]
[1766074055643,0.002,2966.6,2966.1,2.2173]
[1766074055861,0.002,2967.0,2966.3,2.2173]
[1766074056043,0.002,2967.0,2966.5,2.2173]
[1766074056742,0.002,2967.0,2965.6,0.09414929]
[1766074056947,0.002,2967.0,2965.6,0.405504]
[1766074057172,0.03216226,2966.9,2965.5,3.3308]
[1766074057373,0.002,2967.0,2965.4,0.405504]
[1766074057579,0.002,2967.0,2965.5,3.3308]
[1766074057760,0.002,2967.0,2965.7,3.3308]
[1766074058286,0.002,2967.0,2965.8,1.1135]
[1766074058488,0.33742942,2966.9,2965.8,4.33826324]
[1766074058785,0.002,2967.0,2965.9,2.2173]
[1766074058960,0.002,2967.0,2966.0,1.1135]
[1766074059161,0.002,2967.0,2965.9,0.405504]
[1766074059357,0.002,2967.0,2966.3,2.2173]
[1766074059867,0.002,2967.0,2966.1,1.1135]
[1766074060202,0.002,2967.0,2966.2,0.38748]
[1766074060486,0.46638023,2967.0,2966.2,0.38748]
[1766074060851,0.46558023,2967.0,2966.2,0.38748]
[1766074061055,0.46558023,2967.0,2966.0,2.2173]
[1766074061675,0.0012,2967.0,2966.0,2.2173]
[1766074061859,0.0012,2967.0,2965.9,0.405504]
[1766074062074,0.0012,2967.0,2966.2,3.37131683]
[1766074062254,0.0012,2967.0,2966.3,3.37117761]
[1766074062449,0.0012,2967.0,2966.4,0.33711776]
[1766074062646,0.0012,2967.0,2966.1,2.337]
[1766074064182,0.0012,2967.0,2966.0,1.1135]
[1766074064359,0.0012,2967.0,2965.8,0.63814929]
[1766074064360,0.0012,2967.0,2966.4,1.1526]
[1766074064556,0.0012,2967.0,2966.5,3.4896]
[1766074065962,0.0012,2967.0,2966.0,4.439104]
[1766074066262,0.0012,2967.0,2965.5,0.09414929]
[1766074066263,0.03336226,2967.0,2965.5,0.09414929]
[1766074066465,0.03336226,2967.0,2965.7,3.4896]
[1766074067087,0.0012,2967.0,2966.0,0.001]
[1766074067963,0.0012,2967.0,2965.4,3.37215076]
[1766074068165,0.0012,2967.0,2965.6,3.4896]
[1766074068501,0.46438023,2966.9,2965.8,3.4896]
[1766074068801,0.0012,2967.0,2966.2,3.4896]
[1766074068965,0.0012,2967.0,2966.0,0.46438023]
[1766074069168,0.0012,2967.0,2966.1,3.4896]
[1766074069566,0.0012,2967.0,2966.3,2.337]
[1766074069896,0.0012,2967.0,2966.4,0.2337]
[1766074070112,0.0012,2967.0,2966.4,3.7233]
[1766074070287,0.0012,2967.0,2966.4,0.2337]
[1766074070490,0.03336226,2967.0,2965.8,7.26684843]
[1766074070795,0.46558023,2967.0,2965.8,3.4896]